Cogmind - Beta 13 @@@ ROGUE MODE // 2024.04.11 @ 03:38:24 Player: GregoriusTechneticies Result: Destroyed by as-48770 with Assembled Blade Performance ------------- Evolutions (0) 0 Regions Visited (2) 400 Robots Destroyed (32) 160 Value Destroyed (302) 302 Prototype IDs (0) 0 Alien Tech Used (0) 0 Bonus (0) 0 TOTAL SCORE: 862 Bonus ------- None Cogmind --------- Core Integrity 0/250 Matter 299/300 Energy 46/100 System Corruption 25% Temperature Cool (0) Movement Rolling (80) Location -10/Mines Parts ------- > --- POWER (1) -------- (None) > --- PROPULSION (2) --- Wheel Wheel > --- UTILITY (2) ------ Improved Terrain Scanner Terrain Scan Processor > --- WEAPON (2) ------- Assault Rifle Light Assault Rifle > --- INVENTORY (5) ---- Signal Interpreter Hammer Proton Bomb Trap Proton Bomb Trap Proton Bomb Trap Peak State ------------ > --- POWER ------------ Backup Power I > --- PROPULSION ------- Wheel Wheel > --- UTILITY ---------- Improved Terrain Scanner Terrain Scan Processor > --- WEAPON ----------- Assault Rifle Light Assault Rifle > --- INVENTORY -------- Backup Power I Structural Scanner Signal Interpreter Hammer [Rating: 10] Favorites ----------- Power Backup Power I Engine Backup Power I Propulsion Light Treads Treads Light Treads Wheel Wheel Flight Unit Flight Unit Utility Seismic Detector Device Seismic Detector Processor Terrain Scan Processor Weapon Light Assault Rifle Energy Gun Small Laser Ballistic Gun Light Assault Rifle Impact Weapon Hammer Build | -11 -10 -10 ------- Run | Yrd Mat Min Slots Evolved . | . . . Power . | . . . Propulsion . | . . . Utility . | . . . Weapon . | . . . Parts Attached 42 | 6 20 16 Power 6 | . 4 2 Engine 6 | . 4 2 Core . | . . . Reactor . | . . . Propulsion 14 | 2 4 8 Treads 2 | 2 . . Leg . | . . . Wheel 8 | . . 8 Hover . | . . . Flight 4 | . 4 . Utility 10 | 2 2 6 Device 8 | 2 2 4 Storage . | . . . Processor 2 | . . 2 Hackware . | . . . Protection . | . . . Artifact . | . . . Weapon 12 | 2 10 . Energy Gun 1 | . 1 . Energy Cannon . | . . . Ballistic Gun 9 | 2 7 . Ballistic Cannon . | . . . Launcher . | . . . Special Weapon . | . . . Impact Weapon 2 | . 2 . Slashing Weapon . | . . . Piercing Weapon . | . . . Special Melee Weapon . | . . . Unidentified Prototypes . | . . . Parts Lost 10 | . 1 9 Power 3 | . 1 2 Propulsion 3 | . . 3 Utility 4 | . . 4 Weapon . | . . . Highest Loss Streak 4 | . 1 4 To Critical Strikes . | . . . Average Slot Usage (%) 80 | . 93 67 Engine 10 | . 11 10 Treads 2 | . 5 . Wheel 4 | . . 9 Flight 11 | . 21 1 Device 20 | . 27 14 Processor 1 | . . 3 Ballistic Gun 26 | . 25 28 Naked Turns . | . . . Heaviest Build 8 | 5 8 6 Greatest Support 20 | 3 8 20 Greatest Overweight (x) 2 | 1 2 1 Average Overweight (x) . | . . . Largest Inventory Capacity 5 | 5 5 5 Average Capacity 5 | 5 5 5 Most Carried 5 | 5 5 5 Average Carried 4 | 3 4 4 Final Capacity 5 | 5 5 5 Final Carried 5 | 5 5 5 Class Distribution -------------------- 75% | Mutant 24% | Scavenger-Mutant Dominant Class ---------------- Mutant | -10/Materials Mutant | -10/Mines Resources | -11 -10 -10 ----------- Run | Yrd Mat Min Matter Collected 1054 | 412 299 343 Remotely . | . . . Salvage Created 990 | 333 405 252 Parts 74 | 33 23 18 Haulers Intercepted . | . . . Recyclers Shooed . | . . . Parts Field Recycled . | . . . Retrieved Matter . | . . . Parts Self-Destructed . | . . . Prevented . | . . . Kills | -11 -10 -10 ------- Run | Yrd Mat Min Combat Hostiles Destroyed 12 | . 5 7 Guns 12 | . 5 7 Classes Destroyed 9 | 3 5 1 Worker 6 | 4 1 1 Builder 2 | . 1 1 Tunneler 13 | 9 1 3 Recycler 3 | 1 1 1 Mechanic 1 | . 1 . Watcher 2 | . 2 . Swarmer 2 | . 2 . Grunt 3 | . 3 . Assembled 7 | . . 7 Best Kill Streak 4 | 4 4 3 Combat Bots Only 2 | . 2 2 Max Kills in Single Turn 1 | 1 1 1 Gunslinging . | . . . Exploded . | . . . Melee . | . . . Uniques/NPCs Destroyed . | . . . Combat | -11 -10 -10 -------- Run | Yrd Mat Min Hostile Shots Fired 64 | . 38 26 Missed 14 | . 11 3 Damage Taken 799 | . 278 521 Core 278 | . 94 184 Absorbed by Shields . | . . . Regen/Repaired (Parts) 15 | . 15 . Core Remaining (%) 100 | 100 . . Volleys Fired 116 | 38 39 39 Largest 2 | 2 2 2 Hottest 40 | 40 40 40 Shots Fired 226 | 76 72 78 Gun 226 | 76 72 78 Cannon . | . . . Launcher . | . . . Special . | . . . Kinetic 226 | 76 72 78 Thermal . | . . . Explosive . | . . . Electromagnetic . | . . . Robot Hit Streak 10 | 7 10 8 Robot Miss Streak 4 | 4 4 4 Penetration Max . | . . . Secondary Targets 1 | . . 1 Max Gunslinging Chain 1 | . . 1 Shots Hit Robots 129 | 42 47 40 Core Hits 63 | 20 21 22 Critical Kills 2 | . . 2 Critical Parts Destroyed 1 | 1 . . Critical Strikes 3 | 1 . 2 Destroy 3 | 1 . 2 Melee Attacks 12 | . 12 . Impact 12 | . 12 . Slashing . | . . . Piercing . | . . . Sneak Attacks . | . . . Combat Hostiles . | . . . Follow-up Attacks . | . . . Damage Inflicted 1378 | 486 514 378 Guns 1341 | 486 477 378 Cannons . | . . . Explosions . | . . . Melee 37 | . 37 . Ramming . | . . . Kinetic 1341 | 486 477 378 Thermal . | . . . Explosive . | . . . Electromagnetic . | . . . Impact 37 | . 37 . Slashing . | . . . Piercing . | . . . Highest Corruption 25 | . 1 25 Average Corruption 15 | . 1 16 Corruption Purged . | . . . Corruption Blocked . | . . . Effects 26 | . 1 25 Message Errors 8 | . . 8 Matter Fused 5 | . 1 4 Heat Flow Errors 1 | . . 1 Energy Discharges 3 | . . 3 Data Loss (minor) 7 | . . 7 Misfires 1 | . . 1 Weapon Failures 1 | . . 1 Overload Shots . | . . . Overflow Damage 15 | . 15 . Projectiles . | . . . Explosions . | . . . Melee 15 | . 15 . Knockbacks . | . . . Impact . | . . . Kinetic . | . . . Secondary . | . . . Self-Inflicted Damage . | . . . Shots . | . . . Rammed . | . . . Targets Rammed . | . . . Kicked . | . . . Crushed . | . . . Highest Temperature 202 | . 34 202 Average Temperature 37 | . 11 81 Received Heat Transfer 114 | . 114 . Siege Activations . | . . . Robots Corrupted . | . . . Combat Hostiles . | . . . Parts Fried 1 | . 1 . Impact Corruptions 1 | . 1 . Robots Melted . | . . . Combat Hostiles . | . . . Parts Melted . | . . . Heat Transferred . | . . . Parts Sabotaged . | . . . Parts Stolen . | . . . Parts Stripped . | . . . Power Chain Reactions . | . . . Alert | -11 -10 -10 ------- Run | Yrd Mat Min Peak Influence 201 | 70 201 35 Initial 21 | . . 21 Average 36 | 35 65 7 Maximum Alert Level 1 | . 1 . Low Security (%) 99 | 100 98 100 Level 1 . | . 1 . Level 2 . | . . . Level 3 . | . . . Level 4 . | . . . Level 5 . | . . . High Security . | . . . Max Security . | . . . Squads Dispatched 2 | . 2 . Investigation 2 | . 2 . Extermination . | . . . Reinforcement . | . . . Assault . | . . . Garrison . | . . . Intercept . | . . . Searches Triggered . | . . . Construction Impeded . | . . . Haulers Reinforced . | . . . Active Scanning Responses . | . . . Cargo Convoy Interrupts . | . . . Stealth | -11 -10 -10 --------- Run | Yrd Mat Min Distress Signals 2 | . 1 1 Communications Jammed . | . . . Distress Signals . | . . . Times Spotted 28 | . 18 10 Peak Tracking Total 7 | . 7 3 Tactical Retreats 2 | . 1 1 Traps | -11 -10 -10 ------- Run | Yrd Mat Min Traps Triggered . | . . . Indirectly . | . . . Trap Hack Attempts . | . . . Triggered . | . . . Disarmed . | . . . Reprogrammed . | . . . Reused . | . . . Traps Extracted . | . . . Installed . | . . . Triggered . | . . . Most Traps Carried 3 | . . 3 Machines | -11 -10 -10 ---------- Run | Yrd Mat Min Machines Disabled 1 | . 1 . Max in Single Turn 1 | . 1 . Machines Repaired . | . . . Machines Dismantled . | . . . Machines Sabotaged . | . . . Overloaded Fab Kills . | . . . Hacking | -11 -10 -10 --------- Run | Yrd Mat Min Machines Accessed 3 | . 3 . Terminals 2 | . 2 . Fabricators . | . . . Repair Stations 1 | . 1 . Recycling Units . | . . . Scanalyzers . | . . . Garrison Access . | . . . Total Hacks 12 | . 12 . Successful 5 | . 5 . Failed 7 | . 7 . Catastrophic 1 | . 1 . Database Lockouts . | . . . Manual 4 | . 4 . Terminals 5 | . 5 . Fabricators . | . . . Repair Stations 7 | . 7 . Recycling Units . | . . . Scanalyzers . | . . . Garrison Access . | . . . Terminal Hacks 1 | . 1 . Registered Components 1 | . 1 . Fabricator Hacks . | . . . Repair Station Hacks 4 | . 4 . Scan Component 2 | . 2 . Repair 2 | . 2 . Recycling Unit Hacks . | . . . Scanalyzer . | . . . Garrison Access Hacks . | . . . Unauthorized Hacks . | . . . Terminals . | . . . Fabricators . | . . . Repair Stations . | . . . Recycling Units . | . . . Scanalyzers . | . . . Garrison Access . | . . . Data Cores Recovered . | . . . Used . | . . . Hacking Detections 3 | . 3 . Full Trace Events 3 | . 3 . Feedback Events 1 | . 1 . Corruption 1 | . 1 . Feedback Blocked . | . . . Robot Schematics Acquired . | . . . Robots Built . | . . . Authchips . | . . . Time . | . . . Total Robot Build Rating . | . . . Part Schematics Acquired . | . . . Parts Built . | . . . Authchips . | . . . Time . | . . . Total Part Build Rating . | . . . Parts Repaired 2 | . 2 . Time 52 | . 52 . Parts Recycled . | . . . Recycled Matter . | . . . Retrieved Matter . | . . . Retrieved Components . | . . . Parts Scanalyzed . | . . . Part Schematics Acquired . | . . . Parts Damaged . | . . . Bothacking | -11 -10 -10 ------------ Run | Yrd Mat Min Used RIF Installer . | . . . Robots Hacked . | . . . Non-combat . | . . . Combat . | . . . Robot Hacks Applied . | . . . Relay Couplers Released . | . . . Fabnet Peak Effective % . | . . . Robots Rewired . | . . . Allies Hacked . | . . . Hacks Repelled . | . . . Allies | -11 -10 -10 -------- Run | Yrd Mat Min Total Allies . | . . . Largest Group . | . . . Highest-Rated Group . | . . . Highest-Rated Ally . | . . . Total Orders . | . . . Ally Attacks . | . . . Total Damage . | . . . Kills . | . . . Allies Corrupted . | . . . Allies Melted . | . . . Intel | -11 -10 -10 ------- Run | Yrd Mat Min Robot Analysis Total . | . . . Derelict Logs Recovered . | . . . Drone Launches . | . . . Drone Recoveries . | . . . Exploration | -11 -10 -10 ------------- Run | Yrd Mat Min Turns Passed 1573 | 461 552 560 Spaces Moved 1090 | 253 615 222 Core 403 | 253 92 58 Treads . | . . . Legs . | . . . Wheels 134 | . . 134 Hover . | . . . Flight 553 | . 523 30 Fastest Speed 37 | 50 37 37 Average Speed 57 | 62 47 79 Slowest Speed 150 | 100 150 100 Overloaded Moves . | . . . Propulsion Burnouts . | . . . Robots Hopped 3 | . 3 . Cave-ins Triggered . | . . . Exploration Rate (%) 33 | 3 83 15 Regions Visited 2 Branch Regions 1 Pre-discovered Areas . | . . . Known Exits Taken . | . . . Unknown Exits Taken 2 | 1 1 . Scrap Searched . | . . . Spaces Dug 1 | . 1 . Terrain Destroyed 1 | . 1 . Melee 1 | . 1 . Projectile . | . . . AOE . | . . . Terrain Rammed . | . . . Walls Destroyed . | . . . Machines Disabled . | . . . Actions | -11 -10 -10 --------- Run | Yrd Mat Min Total 1818 | 494 788 536 Wait 493 | 163 82 248 Move 1082 | 252 608 222 Hop 3 | . 3 . Pick Up 36 | 23 9 4 Fast Attach 12 | . 6 6 Attach 13 | 6 3 4 Detach 2 | . 1 1 Swap 17 | . 11 6 Drop 32 | 12 14 6 Fire 116 | 38 39 39 Melee 12 | . 12 . Ram . | . . . Kick . | . . . Crush . | . . . Escape Stasis . | . . . Rewire . | . . . Trap . | . . . Miscellaneous . | . . . Route ------- -11/Scrapyard -10/Materials (discovered 3 exits: [*Mat x2] / [*Min]) -10/Mines History --------- Turn | Location | Event 2 | -11/Scrapyard | Discovered new exit (range 16) 462 | -11/Scrapyard | Entered Materials 463 | -10/Materials | Build established: Mutant 648 | -10/Materials | Repaired Flight Unit 681 | -10/Materials | Repaired Flight Unit 863 | -10/Materials | Discovered new exit (range 16) 915 | -10/Materials | Discovered new exit (range 10) 1011 | -10/Materials | Discovered new exit (range 9) 1014 | -10/Materials | Entered Mines 1015 | -10/Mines | Assembled infested the area 1044 | -10/Mines | System corruption reached 10% 1074 | -10/Mines | Lost 4 parts (2n2u) 1347 | -10/Mines | Core integrity fell below 50% 1426 | -10/Mines | Core integrity fell below 20% 1428 | -10/Mines | Found a hidden stash of uninstalled traps 1453 | -10/Mines | Lost 3 parts (1p1n1u) 1574 | -10/Mines | Destroyed by as-48770 with Assembled Blade Last Messages --------------- 01501_ K-01 Serf destroyed. 01502_ Dropped Wheel. 01503_ Acquired 10 matter. 01508_ Dropped Wheel. 01514_ U-05 Engineer lays Concrete. 01515_ U-05 Engineer builds a Wall. 01516_ Acquired 17 matter. 01517_ Acquired 3 matter. 01522_ Acquired 4 matter. 01523_ System corrupted: Matter fused (-8). 01523_ Acquired 8 matter. 01527_ Extracted 4 matter. 01539_ JGK#VQ,4N4>0:FTZD3PLL 8K&O%0JY 01551_ Dropped Wheel. 01555_ System corrupted: Component data lost. 01555_ Acquired 10 matter. 01572_ System corrupted: Matter fused (-7). 01572_ Acquired 7 matter. 01573_ as-01677 destroyed. 01574_ Acquired 3 matter. Map ----- +----------------------------------------------------+ | ???????????????????????????????????????????? | | ???????????????????????????????????????????? | | ???????????????????????????????????????????? | | ???????????????????????????????????????????? | | ???????????????????????????????????????????? | | ???????????????????????????????????????????? | | ???????????????????????????????????????????? | | ?????????? ????????????????????????????????? | | ?? ????????????????????????????????????????? | | ????????? ??? ?????????????????#???????????? | | ??#?????? ????? ? ??????#???#?#???????#????? | | ??????#??? ?? ???????#???#????????#?????? | | ?????????#??? ??? ??#??#??#??????????????? | | #???# #??#?? ??????? ?#??#######??????????? | | ??#??????#????#?? ?????#?########??#???????? | | ????# ########?# ?? ?#?### ###?????#????? | | ?#?## ######??#? ??## #####?#?????? | | ?? ####??# ? ????### ########????? | | ??#?#### =#######??####?#### #########???? | | #???#### = #######?#??#?#### ### ###???? | | #?#???##!= ######?#?#?###### ###??? | | ????#?## ###?####??#??#### ##?#?? | | #???#### ################# ##???? | | ????#### ################# * | ##???? | | ###### ##### | #### = ! ###?#?? | | ?### # #### aa@= #### |= ####?#?? | | ### # ### ## ##### |%* #####???? | | ?## = ## #== # ###### = ######??? | | %* %%!# *= ##?####### ###???##?? | | ### ## # #=%=!=%| ###?####### ####?##???? | | ### ### ###%%= !!= #######?##########?#????? | | ?## ##? ##*!=*%= ####?#??#########????#??#? | | ####?# ##%!|=!!#######?##?##????#???#???#?? | | ?###?#? #!*%!| #####???#?#####???#??##?????? | | ???#########%*####?#??####?##????????#?????? | | % % %%%!==####?#??#?# ??##??????#??#??? | | ??########%%##?##?#?#??? ?????? ?#???#???? | | ???##### ###??##?? ? ???????#???????? | | ????## # ###??#?#? ? ? ????? ?#????? | | ?????## # ## ??#? ??#?????????#? | | ????##############?#?? ????? ??????????#??? | | ???###############? ? ????????????????????? | | ??#??#?##???####?###??# ?#????????????????? | | ????#??###???#?#??#???##???????????????????? | | ???#?????#?#?????##????????????????????????? | | | | | | | | | | | +----------------------------------------------------+ Best States ------------- Heat Dissipation 25 Energy Generation 10 Energy Capacity 125 Matter Stores 300 Matter Capacity 300 Sight Range 16 Robot Scan Range 14 Terrain Scan Range 16 Terrain Scan Density 85 Evasion (%) 62 Item Schematics ----------------- None Robot Schematics ------------------ None Fabricated ------------ Nothing Alien Tech Used ----------------- None Achievements -------------- None Challenges ------------ None Game ------ Seed QuantumAngularExoskeleton Manual? 0 Play Time 00:27:19 Cumulative 22.2 hours Start 2024.04.11 @ 03:08:04 End 2024.04.11 @ 03:38:24 Sessions 1 Manual Loads 0 Difficulty Rogue Special Mode None Game No. 25 Rogue 10 Adventurer 0 Explorer 15 Win Type - Total 0 Types 0/0/0/0/0/0/0/0/0 Lore% 14 Gallery% 24 Achievement% 18 Wizard Run 0 Options --------- Layout 1 ASCII 0 Keyboard 0 Movement Mouse Keybinds 0 Fullscreen 1 Font 24/Smallcaps Map View 50x35 Zoom Use 0% Tactical HUD 1 Map Filters NONE Filters NONE Steam 1 RUN: e42d2b4f-6433-477b-8261-89e7ac469712